bitfinex-derivatives/quotes_BNBF0:USTF0_20250305
["timestamp","ask_amount","ask_price","bid_price","bid_amount"]
[1741205599749,0.29177252,597.02,595.8,1.58514434]
[1741205601250,0.29177252,597.02,595.8,0.33568311]
[1741205602358,0.759,597.04,595.8,0.33568311]
[1741205602858,0.29178964,597.01,595.8,0.33568311]
[1741205605357,0.759,597.04,595.8,0.33568311]
[1741205605660,0.29179454,597.0,595.8,0.33568311]
[1741205607167,0.3080502,596.99,595.8,0.33568311]
[1741205608466,0.30807577,596.98,595.8,0.33568311]
[1741205608667,0.30807577,596.97,595.8,0.33568311]
[1741205609663,0.30807577,596.97,595.81,1.24946123]
[1741205609868,0.30807577,596.97,595.82,0.33567184]
[1741205611767,0.30807577,596.96,595.82,0.33567184]
[1741205611968,0.30807577,597.08,595.82,0.33567184]
[1741205612175,0.30807577,597.07,595.85,1.24946123]
[1741205612370,0.30807577,597.08,595.85,1.24946123]
[1741205612565,0.30807577,597.07,595.85,1.24946123]
[1741205612769,0.30807577,597.06,595.85,1.24946123]
[1741205614767,0.59988132,597.05,595.85,1.24946123]
[1741205614969,0.29180555,597.05,595.85,1.24946123]
[1741205615370,0.30808612,597.04,595.85,1.24946123]
[1741205615670,0.29180555,597.05,595.85,1.24946123]
[1741205615871,0.30808615,597.04,595.85,1.24946123]
[1741205617573,0.30808615,597.03,595.85,1.24946123]
[1741205617872,0.30808615,597.02,595.85,1.24946123]
[1741205619473,1.032,597.01,595.85,1.24946123]
[1741205619669,0.30808615,597.0,595.85,1.24946123]
[1741205620070,0.30808615,597.0,595.83,0.2918031]
[1741205620276,0.30808615,597.0,595.84,0.33566058]
[1741205620776,0.29181533,596.99,595.84,0.33566058]
[1741205620969,0.30808615,596.98,595.84,0.33566058]
[1741205623577,1.032,597.01,595.84,0.33566058]
[1741205623578,0.30808615,596.97,595.84,0.33566058]
[1741205623878,0.30808615,596.96,595.84,0.33566058]
[1741205626879,1.032,597.01,595.84,0.33566058]
[1741205627174,0.30808662,597.0,595.84,0.33566058]
[1741205627680,0.29183491,596.99,595.84,0.33566058]
[1741205627880,0.30808662,596.98,595.84,0.33566058]
[1741205628475,0.29183491,596.99,595.84,0.33566058]
[1741205628680,0.30815378,596.98,595.84,0.33566058]
[1741205629578,0.30815378,596.97,595.84,0.33566058]
[1741205629880,0.30815378,596.96,595.84,0.33566058]
[1741205632784,0.30815378,597.0,595.84,0.33566058]
[1741205632983,0.30815378,596.99,595.84,0.33566058]
[1741205633180,0.30815378,596.98,595.84,0.33566058]
[1741205633381,0.30815378,596.97,595.84,0.33566058]
[1741205633580,0.30815378,596.96,595.84,0.33566058]
[1741205633785,0.30815378,596.95,595.84,0.33566058]
[1741205633984,0.30815378,596.94,595.84,0.33566058]
[1741205634184,0.30815378,596.93,595.84,0.33566058]
[1741205634378,0.30815378,596.92,595.84,0.33566058]
[1741205634579,0.30815378,596.91,595.84,0.33566058]
[1741205634781,0.30815378,596.9,595.84,0.33566058]
[1741205634986,0.29189611,596.97,595.84,0.33566058]
[1741205635185,0.30823733,596.96,595.84,0.33566058]
[1741205635391,0.30823733,596.95,595.84,0.33566058]
[1741205635583,0.30823733,596.94,595.84,0.33566058]
[1741205635784,0.30823733,596.93,595.84,0.33566058]
[1741205635985,0.30823733,596.92,595.84,0.33566058]
[1741205636186,0.30823733,596.91,595.84,0.33566058]
[1741205636385,0.30823733,596.9,595.84,0.33566058]
[1741205636685,0.29191692,596.96,595.84,0.33566058]
[1741205636686,0.30823733,596.89,595.84,0.33566058]
[1741205636887,0.30823733,596.88,595.84,0.33566058]
[1741205637084,0.30823733,596.87,595.84,0.33566058]
[1741205637283,0.30823733,596.86,595.84,0.33566058]
[1741205637583,0.30823733,596.85,595.84,0.33566058]
[1741205637780,0.30823733,596.84,595.84,0.33566058]
[1741205637985,0.30823733,596.83,595.84,0.33566058]
[1741205638185,0.30823733,596.95,595.84,0.33566058]
[1741205638386,0.30823733,596.94,595.84,0.33566058]
[1741205638686,0.30823733,596.93,595.84,0.33566058]
[1741205638986,0.30823733,596.92,595.84,0.33566058]
[1741205639186,0.30823733,596.91,595.84,0.33566058]
[1741205639385,0.30823733,596.9,595.84,0.33566058]
[1741205639585,0.30823733,596.89,595.84,0.33566058]
[1741205639786,0.30823733,596.88,595.84,0.33566058]
[1741205639981,0.30823733,596.87,595.84,0.33566058]
[1741205640286,0.30823733,596.86,595.84,0.33566058]
[1741205640485,0.30823733,596.85,595.84,0.33566058]
[1741205640687,0.30823733,596.84,595.84,0.33566058]
[1741205640988,0.30823733,596.83,595.84,0.33566058]
[1741205641181,0.30823733,596.93,595.84,0.33566058]
[1741205641486,0.30823733,596.92,595.84,0.33566058]
[1741205641785,0.30823733,596.91,595.84,0.33566058]
[1741205641987,0.30823733,596.9,595.84,0.33566058]
[1741205642285,0.30823733,596.89,595.84,0.33566058]
[1741205642486,0.30823733,596.88,595.84,0.33566058]
[1741205642785,0.30823733,596.87,595.84,0.33566058]
[1741205642985,0.30823733,596.86,595.84,0.33566058]
[1741205643283,0.30823733,596.85,595.84,0.33566058]
[1741205643482,0.30823733,596.84,595.84,0.33566058]
[1741205643688,0.30823733,596.91,595.84,0.33566058]
[1741205643987,0.30823733,596.9,595.84,0.33566058]
[1741205644286,0.30823733,596.89,595.84,0.33566058]
[1741205644485,0.30823733,596.88,595.84,0.33566058]
[1741205644682,0.30823733,597.08,595.84,0.33566058]
[1741205644886,0.30823733,597.07,595.84,0.33566058]
[1741205645087,0.30823733,597.08,595.84,0.33566058]
[1741205645286,0.30823733,597.07,595.84,0.33566058]
[1741205645487,0.30823733,597.08,595.84,0.33566058]
[1741205645688,0.2919659,597.07,595.84,0.33566058]
[1741205645988,0.30823733,597.06,595.84,0.33566058]
[1741205647585,0.30823733,597.08,595.84,0.33566058]
[1741205648691,0.29194753,597.07,595.84,0.33566058]
[1741205648885,0.30823733,597.06,595.84,0.33566058]
[1741205649086,0.30823733,597.05,595.84,0.33566058]
[1741205649291,0.30823733,597.04,595.84,0.33566058]
[1741205649489,0.30823733,597.03,595.84,0.33566058]
[1741205649690,0.30823733,597.06,595.84,0.33566058]
[1741205649889,0.30823733,597.05,595.84,0.33566058]
[1741205650087,0.30823733,597.04,595.84,0.33566058]
[1741205650287,0.30823733,597.06,595.84,0.33566058]
[1741205650494,0.30823733,597.05,595.84,0.33566058]
[1741205650688,0.30823733,597.04,595.84,0.33566058]
[1741205650992,0.30823733,597.03,595.84,0.33566058]
[1741205651191,0.30823733,597.08,595.84,0.33566058]
[1741205651386,0.30823733,597.07,595.84,0.33566058]
[1741205651591,0.30823733,597.06,595.84,0.33566058]
[1741205651789,0.30823733,597.05,595.84,0.33566058]
[1741205652087,0.30823733,597.04,595.84,0.33566058]
[1741205652292,0.30823733,597.06,595.84,0.33566058]
[1741205652491,0.29193529,597.07,595.84,0.33566058]
[1741205652792,0.30816478,597.06,595.84,0.33566058]
[1741205652992,0.30816478,597.05,595.84,0.33566058]
[1741205653292,0.30816478,597.04,595.84,0.33566058]
[1741205653494,0.30816478,597.03,595.84,0.33566058]
[1741205653695,0.30816478,597.02,595.84,0.33566058]
[1741205653996,0.30816478,597.01,595.84,0.33566058]
[1741205654196,0.33495787,597.09,595.84,0.33566058]
[1741205654393,0.30816511,597.08,595.84,0.33566058]
[1741205654594,0.30816511,597.07,595.84,0.33566058]
[1741205654794,0.30816511,597.06,595.84,0.33566058]
[1741205654996,0.30816511,597.05,595.84,0.33566058]
[1741205655196,0.30816511,597.04,595.84,0.33566058]
[1741205655397,0.30816511,597.03,595.84,0.33566058]
[1741205655597,0.30816511,597.02,595.84,0.33566058]
[1741205655796,0.30816511,597.01,595.84,0.33566058]
[1741205655998,0.30816511,597.0,595.84,0.33566058]
[1741205656199,0.30816511,596.99,595.84,0.33566058]
[1741205656395,0.30816511,596.98,595.84,0.33566058]
[1741205656596,0.30816511,596.97,595.84,0.33566058]
[1741205656899,0.30816511,596.96,595.84,0.33566058]
[1741205657098,0.30816511,596.97,595.84,0.33566058]
[1741205657299,0.30816511,596.96,595.84,0.33566058]
[1741205657598,0.30816511,596.95,595.84,0.33566058]
[1741205657801,0.30816511,596.97,595.84,0.33566058]
[1741205658093,0.30816511,596.96,595.84,0.33566058]
[1741205658298,0.29186061,596.98,595.84,0.33566058]
[1741205658299,0.30816511,596.97,595.84,0.33566058]
[1741205658498,0.30816511,596.96,595.84,0.33566058]
[1741205658694,0.30816511,596.95,595.84,0.33566058]
[1741205658998,0.30816511,596.94,595.84,0.33566058]
[1741205659199,0.30816511,596.97,595.84,0.33566058]
[1741205659399,0.30816511,596.96,595.84,0.33566058]
[1741205659600,0.30816511,596.97,595.84,0.33566058]
[1741205659801,0.60003062,596.96,595.84,0.33566058]
[1741205660002,0.30816511,596.95,595.84,0.33566058]
[1741205662599,0.29187897,596.94,595.84,0.33566058]
[1741205662805,0.30816511,596.93,595.84,0.33566058]
[1741205665307,1.107,597.03,595.84,0.33566058]
[1741205665608,0.29185572,596.92,595.84,0.33566058]
[1741205665806,0.30815991,596.91,595.84,0.33566058]
[1741205666007,0.30815991,597.02,595.84,0.33566058]
[1741205666207,1.107,597.03,595.84,0.33566058]
[1741205666406,0.30814396,597.02,595.84,0.33566058]
[1741205666601,0.59998254,597.02,595.84,0.33566058]
[1741205666805,0.30814396,597.01,595.84,0.33566058]
[1741205668710,0.30814396,597.02,595.84,0.33566058]
[1741205668912,0.59998377,597.0,595.84,0.33566058]
[1741205669112,0.29183981,597.0,595.84,0.33566058]
[1741205669311,0.30814396,596.99,595.84,0.33566058]
[1741205670913,0.30813902,596.98,595.84,0.33566058]
[1741205671115,0.30813902,596.97,595.84,0.33566058]
[1741205671316,0.30813902,596.96,595.84,0.33566058]
[1741205671517,0.30813902,596.99,595.84,0.33566058]
[1741205671717,0.29183858,596.96,595.84,0.33566058]
[1741205671919,0.30813902,596.95,595.84,0.33566058]
[1741205673518,0.29183858,596.96,595.84,0.33566058]
[1741205674513,1.107,597.03,595.84,0.33566058]
[1741205674718,0.3081232,597.02,595.84,0.33566058]
[1741205674917,0.3081232,597.08,595.84,0.33566058]
[1741205675117,0.3081232,597.07,595.84,0.33566058]
[1741205675318,0.3081232,597.06,595.84,0.33566058]
[1741205675518,0.3081232,597.05,595.84,0.33566058]
[1741205675819,0.3081232,597.04,595.84,0.33566058]
[1741205676221,0.3081232,597.03,595.84,0.33566058]
[1741205676419,0.3081232,597.02,595.84,0.33566058]
[1741205676615,0.3081232,597.01,595.84,0.33566058]
[1741205676820,0.3081232,597.0,595.84,0.33566058]
[1741205677015,0.3081232,596.99,595.84,0.33566058]
[1741205677218,0.3081232,597.04,595.84,0.33566058]
[1741205677416,0.30819704,597.03,595.84,0.33566058]
[1741205677622,0.30819704,597.02,595.84,0.33566058]
[1741205677920,0.30819704,597.01,595.84,0.33566058]
[1741205678616,0.29187163,597.0,595.84,0.33566058]
[1741205678823,0.30819704,596.99,595.84,0.33566058]
[1741205679123,0.3081985,596.98,595.84,0.33566058]
[1741205679316,0.3081985,596.97,595.84,0.33566058]
[1741205679517,0.3081985,596.96,595.84,0.33566058]
[1741205679718,0.3081985,596.99,595.84,0.33566058]
[1741205679919,0.3081985,596.98,595.84,0.33566058]
[1741205680216,0.3081985,596.97,595.84,0.33566058]
[1741205680415,0.3081985,596.96,595.84,0.33566058]
[1741205680621,0.3081985,597.01,595.84,0.33566058]
[1741205680921,0.3081985,597.0,595.84,0.33566058]
[1741205681120,0.3081985,597.01,595.84,0.33566058]
[1741205681320,0.3081985,597.0,595.84,0.33566058]
[1741205681521,0.3081985,597.01,595.84,0.33566058]
[1741205681722,0.29191325,597.0,595.84,0.33566058]
[1741205682017,0.3081985,596.99,595.84,0.33566058]
[1741205683625,0.3081985,597.01,595.84,0.33566058]
[1741205683825,0.3081985,597.0,595.84,0.33566058]
[1741205684019,0.3081985,597.01,595.84,0.33566058]
[1741205684621,0.29188754,597.0,595.84,0.33566058]
[1741205684827,0.3081985,596.99,595.84,0.33566058]
[1741205688823,0.29188754,597.0,595.84,0.33566058]
[1741205689028,0.30812513,596.99,595.84,0.33566058]
[1741205689627,0.30812513,597.01,595.84,0.33566058]
[1741205689828,0.30812513,597.0,595.84,0.33566058]
[1741205690027,0.30812513,597.01,595.84,0.33566058]
[1741205690327,0.30812513,597.0,595.84,0.33566058]
[1741205690527,0.30812513,597.01,595.84,0.33566058]
[1741205690729,0.29181289,596.99,595.84,0.33566058]
[1741205690928,0.30812513,596.98,595.84,0.33566058]
[1741205692131,0.29181289,596.99,595.84,0.33566058]
[1741205692331,0.3080841,596.98,595.84,0.33566058]
[1741205692728,0.3080841,596.97,595.84,0.33566058]
[1741205692928,0.3080841,597.01,595.84,0.33566058]
[1741205693129,0.3080841,597.0,595.84,0.33566058]
[1741205693331,0.3080841,597.01,595.84,0.33566058]
[1741205693531,0.3080841,597.0,595.84,0.33566058]
[1741205693730,0.29182268,596.99,595.84,0.33566058]
[1741205694130,0.3080841,596.98,595.84,0.33566058]
[1741205695633,0.3080841,597.01,595.84,0.33566058]
[1741205695834,0.29179331,596.97,595.84,0.33566058]
[1741205696030,0.3080841,596.96,595.84,0.33566058]
[1741205698637,0.29179209,596.95,595.84,0.33566058]
[1741205699135,0.30806681,596.94,595.84,0.33566058]
[1741205701633,0.29180922,596.93,595.84,0.33566058]
[1741205702033,0.30806681,596.92,595.84,0.33566058]
[1741205703238,0.29180922,596.93,595.84,0.33566058]
[1741205703437,0.30807901,596.92,595.84,0.33566058]
[1741205703938,0.29180922,596.93,595.84,0.33566058]
[1741205707438,0.789,597.02,595.84,0.33566058]
[1741205707742,0.30812824,597.01,595.84,0.33566058]
[1741205708743,0.29188754,597.0,595.84,0.33566058]
[1741205708947,0.30812824,596.99,595.84,0.33566058]
[1741205710646,0.30812824,597.01,595.84,0.33566058]
[1741205710845,0.30812824,597.0,595.84,0.33566058]
[1741205711049,0.30812824,596.99,595.84,0.33566058]
[1741205711246,0.30812824,597.01,595.84,0.33566058]
[1741205711441,0.30812824,597.0,595.84,0.33566058]
[1741205711640,0.30812824,596.99,595.84,0.33566058]
[1741205711846,0.30812837,596.98,595.84,0.33566058]
[1741205712046,0.30812837,596.97,595.84,0.33566058]
[1741205712248,0.30812837,596.96,595.84,0.33566058]
[1741205712547,0.30812837,596.95,595.84,0.33566058]
[1741205712747,0.30812837,596.99,595.84,0.33566058]
[1741205713048,0.29187407,597.0,595.84,0.33566058]
[1741205713346,0.30814798,596.99,595.84,0.33566058]
[1741205714747,0.29187407,597.0,595.84,0.33566058]
[1741205714948,0.30815268,596.99,595.84,0.33566058]
[1741205716641,0.30815268,597.01,595.84,0.33566058]
[1741205716948,0.29185327,596.98,595.84,0.33566058]
[1741205717146,0.30815268,596.97,595.84,0.33566058]
[1741205719744,0.29186306,596.96,595.84,0.33566058]
[1741205719944,0.30815268,596.95,595.84,0.33566058]
[1741205721449,0.30816392,596.94,595.84,0.33566058]
[1741205721650,0.30816392,596.95,595.84,0.33566058]
[1741205721952,0.30816392,596.94,595.84,0.33566058]
[1741205722248,0.30816392,596.93,595.84,0.33566058]
[1741205722445,0.30816392,596.95,595.84,0.33566058]
[1741205722745,0.30816392,596.94,595.84,0.33566058]
[1741205722948,0.789,597.02,595.84,0.33566058]
[1741205723145,0.30817338,597.01,595.84,0.33566058]
[1741205723749,0.29185816,597.0,595.84,0.33566058]
[1741205724052,0.30817338,596.99,595.84,0.33566058]
[1741205724249,0.30817338,596.98,595.84,0.33566058]
[1741205724450,0.30817338,596.97,595.84,0.33566058]
[1741205724746,0.30817338,596.96,595.84,0.33566058]
[1741205724946,0.30817338,596.95,595.84,0.33566058]
[1741205725150,0.30817338,596.99,595.84,0.33566058]
[1741205725350,0.30817338,596.98,595.84,0.33566058]
[1741205725552,0.30817338,596.97,595.84,0.33566058]
[1741205725751,0.30817338,596.96,595.84,0.33566058]
[1741205725947,0.30817338,596.95,595.84,0.33566058]
[1741205726153,0.30817338,596.94,595.84,0.33566058]
[1741205726347,0.30817338,596.93,595.84,0.33566058]
[1741205726551,0.30817338,596.92,595.84,0.33566058]
[1741205726752,0.29187897,596.92,595.84,0.33566058]
[1741205727053,0.30817338,596.91,595.84,0.33566058]
[1741205728653,0.30817338,597.01,595.84,0.33566058]
[1741205728850,0.30817338,597.0,595.84,0.33566058]
[1741205729055,0.30817338,597.01,595.84,0.33566058]
[1741205729254,0.30817338,597.0,595.84,0.33566058]
[1741205729454,0.30817338,597.01,595.84,0.33566058]
[1741205729651,0.29189121,596.99,595.84,0.33566058]
[1741205729851,0.30817338,596.98,595.84,0.33566058]
[1741205731055,0.30818404,596.97,595.84,0.33566058]
[1741205731255,0.30818404,596.98,595.84,0.33566058]
[1741205731451,0.30818404,596.97,595.84,0.33566058]
[1741205731650,0.30818404,596.96,595.84,0.33566058]
[1741205731854,0.30818404,596.98,595.84,0.33566058]
[1741205732055,0.30818404,596.97,595.84,0.33566058]
[1741205732251,0.30818404,596.98,595.84,0.33566058]
[1741205732456,0.30818404,596.97,595.84,0.33566058]
[1741205732652,0.30818404,596.96,595.84,0.33566058]
[1741205732859,0.30818404,596.98,595.84,0.33566058]
[1741205733058,0.30818404,596.97,595.84,0.33566058]
[1741205733357,0.30818404,596.96,595.84,0.33566058]
[1741205733554,0.30818404,596.98,595.84,0.33566058]
[1741205733751,0.30818404,596.97,595.84,0.33566058]
[1741205733952,0.30818404,596.98,595.84,0.33566058]
[1741205734155,0.30818404,596.97,595.84,0.33566058]
[1741205734452,0.30818404,596.96,595.84,0.33566058]
[1741205734652,0.30818404,596.98,595.84,0.33566058]
[1741205737862,1.131,596.97,595.84,0.33566058]
[1741205738060,0.30818404,596.96,595.84,0.33566058]
[1741205739661,1.131,596.97,595.84,0.33566058]
[1741205739861,0.30818588,596.96,595.84,0.33566058]
[1741205740761,0.29187407,596.95,595.84,0.33566058]
[1741205740962,0.30818588,596.94,595.84,0.33566058]
[1741205741858,0.30818588,596.93,595.84,0.33566058]
[1741205742058,0.30818588,596.94,595.84,0.33566058]
[1741205742459,0.30818588,596.93,595.84,0.33566058]
[1741205742661,0.30818588,596.92,595.84,0.33566058]
[1741205742961,0.30818588,596.91,595.84,0.33566058]
[1741205743161,0.29187407,596.95,595.84,0.33566058]
[1741205743162,0.30818588,596.9,595.84,0.33566058]
[1741205743361,0.30818588,596.89,595.84,0.33566058]
[1741205743561,0.30818588,596.88,595.84,0.33566058]
[1741205743761,0.30818588,596.87,595.84,0.33566058]
[1741205743961,0.30818588,596.86,595.84,0.33566058]
[1741205744160,0.30818588,596.85,595.84,0.33566058]
[1741205744360,0.30818588,596.84,595.84,0.33566058]
[1741205744563,0.30818588,596.83,595.84,0.33566058]
[1741205744764,0.30818588,596.82,595.84,0.33566058]
[1741205744956,0.30818588,596.81,595.84,0.33566058]
[1741205745158,0.30818588,596.8,595.84,0.33566058]
[1741205745458,0.30818588,596.79,595.84,0.33566058]
[1741205745660,0.30818588,596.82,595.84,0.33566058]
[1741205745861,0.30818588,596.81,595.84,0.33566058]
[1741205746065,0.30818588,596.8,595.84,0.33566058]
[1741205746265,0.30818588,596.79,595.84,0.33566058]
[1741205746465,0.30818588,596.82,595.84,0.33566058]
[1741205746764,1.50238869,596.93,595.84,0.33566058]
[1741205746765,0.30818588,596.81,595.84,0.33566058]
[1741205746969,0.30818588,596.8,595.84,0.33566058]
[1741205747167,0.30818588,596.92,595.84,0.33566058]
[1741205747361,0.30818588,596.91,595.84,0.33566058]
[1741205747561,0.30818588,596.9,595.84,0.33566058]
[1741205747766,0.30818588,596.89,595.84,0.33566058]
[1741205748067,0.30831414,596.88,595.84,0.33566058]
[1741205748361,0.30831414,596.87,595.84,0.33566058]
[1741205748566,0.30831414,596.86,595.84,0.33566058]
[1741205748762,0.30831414,596.85,595.84,0.33566058]
[1741205748969,0.30831414,596.84,595.84,0.33566058]
[1741205749168,0.30831414,596.83,595.84,0.33566058]
[1741205749367,0.30831414,596.82,595.84,0.33566058]
[1741205749669,0.30831414,596.81,595.84,0.33566058]
[1741205749969,0.30831414,596.8,595.84,0.33566058]
[1741205750169,0.30831414,596.79,595.84,0.33566058]
[1741205750367,0.30831414,596.78,595.84,0.33566058]
[1741205750568,0.30831414,596.77,595.84,0.33566058]
[1741205750769,0.30831414,596.76,595.84,0.33566058]
[1741205750972,0.30831414,596.75,595.84,0.33566058]
[1741205751167,0.30831414,596.74,595.84,0.33566058]
[1741205751367,0.30831414,596.73,595.84,0.33566058]
[1741205751566,0.30831414,596.77,595.84,0.33566058]
[1741205751771,0.30831414,596.76,595.84,0.33566058]
[1741205752071,0.30831414,596.75,595.84,0.33566058]
[1741205752269,0.30831414,596.74,595.84,0.33566058]
[1741205752470,0.30831414,596.77,595.84,0.33566058]
[1741205752767,1.131,596.97,595.84,0.33566058]
[1741205752969,1.50238869,596.95,595.84,0.33566058]
[1741205753167,0.30829627,596.94,595.84,0.33566058]
[1741205753367,0.30829627,596.93,595.84,0.33566058]
[1741205753567,0.30829627,596.92,595.84,0.33566058]
[1741205753767,0.30829627,596.91,595.84,0.33566058]
[1741205753970,0.30829627,596.9,595.84,0.33566058]
[1741205754168,0.30829627,596.89,595.84,0.33566058]
[1741205754471,0.30829627,596.88,595.84,0.33566058]
[1741205754675,0.30829627,596.87,595.84,0.33566058]
[1741205754872,0.30829627,596.86,595.84,0.33566058]
[1741205755073,0.30829627,596.85,595.84,0.33566058]
[1741205755272,0.30829627,596.84,595.84,0.33566058]
[1741205755576,0.30830256,596.83,595.84,0.33566058]
[1741205755777,0.30830256,596.82,595.84,0.33566058]
[1741205755979,0.30830256,596.81,595.84,0.33566058]
[1741205756278,0.30830256,596.8,595.84,0.33566058]
[1741205756473,0.30830256,596.79,595.84,0.33566058]
[1741205756673,0.30830256,596.78,595.84,0.33566058]
[1741205756876,0.30830256,596.77,595.84,0.33566058]
[1741205757078,0.30830256,596.76,595.84,0.33566058]
[1741205757378,0.30830256,596.75,595.84,0.33566058]
[1741205757680,0.29197938,596.93,595.84,0.33566058]
[1741205757877,0.30830037,596.92,595.84,0.33566058]
[1741205758074,0.30830037,596.91,595.84,0.33566058]
[1741205758378,0.30830037,596.9,595.84,0.33566058]
[1741205758580,0.30830037,596.89,595.84,0.33566058]
[1741205758779,0.30830037,596.88,595.84,0.33566058]
[1741205758979,0.30830037,596.87,595.84,0.33566058]
[1741205759279,0.30830037,596.86,595.84,0.33566058]
[1741205759472,0.30830037,596.85,595.84,0.33566058]
[1741205759674,0.30830037,596.84,595.84,0.33566058]
[1741205759876,0.30830037,596.83,595.84,0.33566058]
[1741205760076,0.30830037,596.82,595.84,0.33566058]
[1741205760288,0.30830037,596.81,595.84,0.33566058]
[1741205760580,0.30830037,596.8,595.84,0.33566058]
[1741205760880,0.30830037,596.79,595.84,0.33566058]
[1741205761181,0.30830037,596.78,595.84,0.33566058]
[1741205761375,0.30830037,596.85,595.84,0.33566058]
[1741205761575,0.30830037,596.84,595.84,0.33566058]
[1741205761775,0.30830037,596.83,595.84,0.33566058]
[1741205761977,0.30830037,596.82,595.84,0.33566058]
[1741205762183,0.30830037,596.81,595.84,0.33566058]
[1741205762479,0.30830037,596.8,595.84,0.33566058]
[1741205762681,0.30830037,596.79,595.84,0.33566058]
[1741205762882,0.30830037,596.78,595.84,0.33566058]
[1741205763083,0.30830037,596.77,595.84,0.33566058]
[1741205763284,0.30830037,596.79,595.84,0.33566058]
[1741205763485,0.30830037,596.78,595.84,0.33566058]
[1741205763684,0.30830037,596.77,595.84,0.33566058]
[1741205763880,0.30830037,596.79,595.84,0.33566058]
[1741205764779,0.30822472,596.78,595.84,0.33566058]
[1741205764983,0.30822472,596.96,595.84,0.33566058]
[1741205765183,0.30822472,596.95,595.84,0.33566058]
[1741205765379,0.30822472,596.94,595.84,0.33566058]
[1741205765579,0.30822472,596.93,595.84,0.33566058]
[1741205765783,0.29193529,596.94,595.84,0.33566058]
[1741205765985,0.30822472,596.93,595.84,0.33566058]
[1741205767780,0.30822472,596.92,595.84,0.33566058]
[1741205767987,0.29191202,596.92,595.84,0.33566058]
[1741205768186,0.30822472,596.91,595.84,0.33566058]
[1741205773892,0.29188142,596.9,595.84,0.33566058]
[1741205774188,0.30822472,596.89,595.84,0.33566058]
[1741205776694,0.30822472,596.96,595.84,0.33566058]
[1741205776895,0.29188142,596.88,595.84,0.33566058]
[1741205777096,0.30822472,596.87,595.84,0.33566058]
[1741205777297,0.30822472,596.96,595.84,0.33566058]
[1741205778398,0.2918704,596.95,595.84,0.33566058]
[1741205778698,0.30822472,596.94,595.84,0.33566058]
[1741205779796,0.30822472,596.93,595.84,0.33566058]
[1741205779996,0.30822472,596.92,595.84,0.33566058]
[1741205780196,0.30822472,596.91,595.84,0.33566058]
[1741205780494,0.30822472,596.9,595.84,0.33566058]
[1741205780700,0.30822472,597.08,595.84,0.33566058]
[1741205780999,0.29185449,596.9,595.84,0.33566058]
[1741205781199,0.30822472,596.89,595.84,0.33566058]
[1741205781398,0.30822472,597.08,595.84,0.33566058]
[1741205781598,0.30822472,597.07,595.84,0.33566058]
[1741205781795,0.30822472,597.08,595.84,0.33566058]
[1741205781992,0.30822472,597.07,595.84,0.33566058]
[1741205782198,1.50238869,597.29,595.84,0.33566058]
[1741205782199,1.10022472,597.08,595.84,0.33566058]
[1741205782396,0.30822472,597.07,595.84,0.33566058]
[1741205784202,0.30822472,597.06,595.84,0.33566058]
[1741205784399,0.30822472,597.05,595.84,0.33566058]
[1741205784697,0.30822472,597.04,595.84,0.33566058]
[1741205784902,0.30822472,597.03,595.84,0.33566058]
[1741205785198,0.30822472,597.02,595.84,0.33566058]
[1741205785403,0.30822472,597.01,595.84,0.33566058]
[1741205785599,0.792,597.08,595.84,0.33566058]
[1741205785799,0.30825353,597.07,595.84,0.33566058]
[1741205786004,0.30825353,597.06,595.84,0.33566058]
[1741205786205,0.30825353,597.05,595.84,0.33566058]
[1741205786402,0.30825353,597.04,595.84,0.33566058]
[1741205786705,0.30825353,597.03,595.84,0.33566058]
[1741205786906,0.30825353,597.02,595.84,0.33566058]
[1741205787102,0.30825353,597.01,595.84,0.33566058]
[1741205787302,0.30825353,597.0,595.84,0.33566058]
[1741205787500,0.30825353,596.99,595.84,0.33566058]
[1741205787707,0.30825353,596.98,595.84,0.33566058]
[1741205788006,0.30825353,596.97,595.84,0.33566058]
[1741205788300,0.30825353,596.96,595.84,0.33566058]
[1741205788506,0.30825353,596.95,595.84,0.33566058]
[1741205788806,0.30825353,596.94,595.84,0.33566058]
[1741205789006,0.30825353,596.93,595.84,0.33566058]
[1741205789205,0.30825353,597.07,595.84,0.33566058]
[1741205789401,0.30825353,597.06,595.84,0.33566058]
[1741205789701,0.30825353,597.05,595.84,0.33566058]
[1741205789907,0.30825353,597.04,595.84,0.33566058]
[1741205790104,0.30825353,597.03,595.84,0.33566058]
[1741205790406,0.30825353,597.02,595.84,0.33566058]
[1741205790606,0.30825353,597.01,595.84,0.33566058]
[1741205790799,0.30825353,597.0,595.84,0.33566058]
[1741205791001,0.30825353,596.99,595.84,0.33566058]
[1741205791205,0.3082823,596.98,595.84,0.33566058]
[1741205791401,0.3082823,596.97,595.84,0.33566058]
[1741205791606,0.3082823,596.96,595.84,0.33566058]
[1741205791799,0.3082823,596.95,595.84,0.33566058]
[1741205792001,0.3082823,597.07,595.84,0.33566058]
[1741205792199,0.792,597.08,595.84,0.33566058]
[1741205792200,0.3082823,597.06,595.84,0.33566058]
[1741205792503,0.30827527,597.05,595.84,0.33566058]
[1741205792700,0.30827527,597.04,595.84,0.33566058]
[1741205792906,0.30827527,597.03,595.84,0.33566058]
[1741205793104,0.30827527,597.02,595.84,0.33566058]
[1741205793308,0.30827527,597.01,595.84,0.33566058]
[1741205793503,0.30827527,597.0,595.84,0.33566058]